bitfinex/quotes_BTCUSD_20220207
["timestamp","ask_amount","ask_price","bid_price","bid_amount"]
[1644261648006,0.07628836,44280.0,44276.0,0.2]
[1644261648206,0.07628836,44280.0,44276.0,0.25073498]
[1644261649252,0.07628836,44280.0,44276.0,0.25]
[1644261649458,0.07628836,44280.0,44276.0,0.25073499]
[1644261650254,0.04873927,44282.0,44276.0,0.25073499]
[1644261650455,0.04873927,44282.0,44276.0,0.25]
[1644261651656,0.04873927,44282.0,44277.0,0.25572816]
[1644261652700,0.04873927,44282.0,44277.0,0.27406918]
[1644261653602,0.13105683,44282.0,44277.0,0.27406918]
[1644261653802,0.13105683,44282.0,44277.0,0.01834102]
[1644261654007,0.056446,44286.0,44281.0,0.05]
[1644261654205,0.00057022,44293.0,44285.0,0.05]
[1644261654403,0.00057022,44293.0,44290.0,0.05]
[1644261654606,0.00057022,44293.0,44286.0,0.05]
[1644261654803,0.00057022,44293.0,44283.0,0.05]
[1644261655103,0.00057022,44293.0,44287.0,0.056441]
[1644261655104,0.0782746,44290.0,44287.0,0.056441]
[1644261655704,0.00063611,44293.0,44287.0,0.056441]
[1644261655903,1.0346,44299.0,44290.0,0.05]
[1644261656104,0.056441,44298.0,44291.0,0.056438]
[1644261656303,0.35340698,44297.0,44292.0,0.056438]
[1644261656561,0.58860802,44297.0,44293.0,0.05]
[1644261657362,0.08263278,44295.0,44293.0,0.05]
[1644261658362,0.23520104,44297.0,44293.0,0.05]
[1644261658762,0.23520104,44297.0,44292.0,0.056438]
[1644261658961,0.23587404,44297.0,44292.0,0.056438]
[1644261659362,0.06815821,44293.0,44292.0,0.056438]
[1644261660609,0.06815821,44293.0,44290.0,0.02066467]
[1644261660610,0.12459521,44293.0,44290.0,0.02066467]
[1644261660809,0.1198012,44293.0,44290.0,0.07066467]
[1644261661007,0.11934065,44293.0,44290.0,0.07066467]
[1644261661211,0.11934065,44293.0,44290.0,0.06989688]
[1644261662008,0.11934065,44293.0,44290.0,0.12633188]
[1644261662609,0.11934065,44293.0,44290.0,0.01989688]
[1644261662810,0.32105,44291.0,44290.0,0.01989688]
[1644261663010,0.32105,44291.0,44289.0,0.00076779]
[1644261663211,0.112892,44292.0,44289.0,0.00076779]
[1644261663411,0.32105,44291.0,44289.0,0.00076779]
[1644261663612,0.32105,44291.0,44287.0,0.01964998]
[1644261663815,0.32105,44289.0,44288.0,0.0007678]
[1644261664854,0.32105,44289.0,44287.0,0.01964998]
[1644261665059,0.112913,44287.0,44286.0,0.00076783]
[1644261665254,0.433963,44287.0,44286.0,0.00076783]
[1644261665855,0.07400683,44290.0,44286.0,0.00076783]
[1644261666055,0.07400683,44290.0,44284.0,0.02126236]
[1644261666255,0.2338,44292.0,44284.0,0.02203021]
[1644261666457,0.2338,44292.0,44285.0,0.056444]
[1644261666855,0.23,44293.0,44285.0,0.106444]
[1644261667258,0.056441,44292.0,44285.0,0.056444]
[1644261667460,0.21144685,44291.0,44287.0,0.00075362]
[1644261667705,0.21144685,44291.0,44287.0,0.05719462]
[1644261667902,0.056441,44292.0,44287.0,0.05719462]
[1644261668103,0.056441,44292.0,44288.0,0.05]
[1644261668301,0.23,44293.0,44288.0,0.05]
[1644261668903,0.23,44293.0,44288.0,0.1]
[1644261669103,0.23,44293.0,44291.0,0.05]
[1644261669506,0.23,44293.0,44292.0,0.4]
[1644261669704,0.23,44293.0,44292.0,0.4952]
[1644261669905,0.23,44293.0,44292.0,0.60048759]
[1644261670104,0.23,44293.0,44292.0,0.68943875]
[1644261670308,0.23,44293.0,44292.0,0.65691559]
[1644261670702,0.23,44293.0,44292.0,0.81611805]
[1644261670903,0.23,44293.0,44292.0,0.65691559]
[1644261671103,0.23,44293.0,44292.0,0.81611805]
[1644261671104,0.1832,44293.0,44292.0,0.81611805]
[1644261671461,0.17709396,44293.0,44292.0,0.81611805]
[1644261672156,0.17709396,44293.0,44292.0,0.8134369]
[1644261672356,0.17709396,44293.0,44292.0,0.40814931]
[1644261672557,0.17709396,44293.0,44292.0,0.36294931]
[1644261672756,0.17709396,44293.0,44292.0,0.10374685]
[1644261672962,0.17709396,44293.0,44291.0,0.05]
[1644261673157,0.17709396,44293.0,44290.0,0.056426]
[1644261673358,0.17709396,44293.0,44291.0,0.05]
[1644261674156,0.17709396,44293.0,44291.0,0.206437]
[1644261674358,0.17843382,44293.0,44291.0,0.15]
[1644261675202,0.08999284,44292.0,44291.0,0.15]
[1644261675608,0.08999284,44292.0,44288.0,0.01906974]
[1644261675804,0.14643184,44292.0,44289.0,0.00074299]
[1644261676005,0.08999284,44292.0,44289.0,0.00074299]
[1644261676305,0.17843382,44293.0,44289.0,0.00074299]
[1644261676905,0.17843382,44293.0,44289.0,0.000743]
[1644261677305,0.21898398,44290.0,44289.0,0.000743]
[1644261677508,0.28978814,44290.0,44289.0,0.000743]
[1644261677913,0.00067297,44295.0,44291.0,0.056433]
[1644261678111,0.00067297,44295.0,44294.0,0.562842]
[1644261678112,0.00067295,44295.0,44294.0,0.562842]
[1644261678308,0.00067295,44295.0,44294.0,0.358042]
[1644261678506,0.00067295,44295.0,44294.0,0.408042]
[1644261678706,0.00067295,44295.0,44294.0,0.358042]
[1644261678967,0.00067295,44295.0,44294.0,0.63750065]
[1644261679158,0.08879987,44301.0,44294.0,0.67699762]
[1644261679357,0.001,44305.0,44294.0,0.67699762]
[1644261679560,0.001,44305.0,44299.0,0.05]
[1644261679961,0.001,44305.0,44300.0,1.1]
[1644261680158,0.001,44305.0,44304.0,0.05]
[1644261680764,0.001673,44305.0,44303.0,0.41082542]
[1644261680960,0.001673,44305.0,44303.0,0.46082542]
[1644261681561,0.001,44305.0,44303.0,0.46082542]
[1644261681960,0.001,44305.0,44303.0,0.42134084]
[1644261682704,0.001,44305.0,44304.0,0.05]
[1644261683706,0.231,44305.0,44304.0,0.05]
[1644261684507,0.23074205,44305.0,44304.0,0.05]
[1644261685706,0.22574205,44305.0,44304.0,0.05]
[1644261686107,0.22574205,44305.0,44304.0,0.1]
[1644261686465,0.22574205,44305.0,44304.0,0.15]
[1644261687063,0.20316785,44305.0,44304.0,0.15]
[1644261687964,0.20316785,44305.0,44304.0,0.14939424]
[1644261688964,0.20316785,44305.0,44304.0,0.09939424]
[1644261689365,0.20316785,44305.0,44304.0,0.04939424]
[1644261695662,0.20316785,44305.0,44304.0,0.09459424]
[1644261695862,0.20316785,44305.0,44304.0,0.14459424]
[1644261696862,0.20316785,44305.0,44304.0,0.151686]
[1644261697162,0.20316785,44305.0,44304.0,0.19363775]
[1644261697362,0.20316785,44305.0,44304.0,0.14988183]
[1644261697562,0.000673,44307.0,44304.0,0.14988183]
[1644261697807,0.000673,44307.0,44306.0,0.256389]
[1644261698006,0.000673,44307.0,44306.0,0.62364525]
[1644261698209,0.2032476,44325.0,44311.0,0.03947082]
[1644261698210,0.00266459,44316.0,44311.0,0.03947082]
[1644261698409,0.00266459,44316.0,44315.0,0.45]
[1644261698806,0.00266459,44316.0,44315.0,0.55]
[1644261699207,0.00266459,44316.0,44315.0,0.81859149]
[1644261700514,0.0002019,44318.0,44317.0,0.969126]
[1644261700708,0.004,44325.0,44318.0,1.33559336]
[1644261700709,0.00565793,44320.0,44318.0,1.33559336]
[1644261701009,0.004,44325.0,44320.0,1.45]
[1644261701308,0.004,44325.0,44323.0,0.45]
[1644261701561,0.004,44325.0,44323.0,0.0952]
[1644261701754,0.004,44325.0,44323.0,0.1952]
[1644261702356,0.00117996,44340.0,44324.0,0.6]
[1644261702558,0.00117996,44340.0,44338.0,0.4]
[1644261702758,0.00117996,44340.0,44339.0,0.05]
[1644261703258,0.00117996,44340.0,44339.0,0.651567]
[1644261703455,0.00117996,44340.0,44339.0,0.89983966]
[1644261703656,0.00117996,44340.0,44339.0,0.99983966]
[1644261703857,0.00117996,44340.0,44339.0,1.18020687]
[1644261704060,0.00117996,44340.0,44339.0,1.22418046]
[1644261704255,0.00117996,44340.0,44339.0,1.28107118]
[1644261704455,0.00117996,44340.0,44339.0,1.23709759]
[1644261704856,0.00117996,44340.0,44339.0,1.27589098]
[1644261705306,0.00117996,44340.0,44339.0,1.23709759]
[1644261705708,0.00117996,44340.0,44339.0,1.13709759]
[1644261706107,0.00117996,44340.0,44339.0,1.23709759]
[1644261706407,0.23117996,44340.0,44339.0,1.23709759]
[1644261706613,0.23117996,44340.0,44339.0,0.83882493]
[1644261706907,0.23117996,44340.0,44339.0,0.88882493]
[1644261707107,0.25117996,44340.0,44339.0,0.98882493]
[1644261707507,0.25117996,44340.0,44339.0,0.93882493]
[1644261707708,0.25117996,44340.0,44339.0,0.73882493]
[1644261707909,0.46214136,44340.0,44339.0,0.18725793]
[1644261708108,0.46214136,44340.0,44339.0,0.18036721]
[1644261708312,0.46214136,44340.0,44334.0,0.42]
[1644261708510,0.3,44339.0,44329.0,0.112733]
[1644261708708,0.38014225,44338.0,44329.0,0.112733]
[1644261708964,0.20426372,44333.0,44329.0,0.112733]
[1644261709359,0.20426372,44333.0,44328.0,0.60036721]
[1644261709558,0.3,44332.0,44328.0,0.18036721]
[1644261709757,0.3,44332.0,44326.0,0.42]
[1644261709957,0.3,44332.0,44321.0,0.1]
[1644261709958,0.07265766,44331.0,44321.0,0.1]
[1644261710157,0.3,44330.0,44321.0,0.1]
[1644261710358,0.24921719,44329.0,44321.0,0.1]
[1644261710656,0.24921719,44329.0,44319.0,0.056385]
[1644261710860,0.00066408,44328.0,44321.0,0.4]
[1644261711061,0.3,44330.0,44321.0,0.4]
[1644261711258,0.01276081,44328.0,44321.0,0.1]
[1644261711461,0.3,44330.0,44322.0,0.05]
[1644261711661,0.3,44330.0,44320.0,0.056384]
[1644261711864,0.25311096,44329.0,44319.0,0.0207412]
[1644261712061,0.22612238,44320.0,44319.0,0.0207412]
[1644261712459,0.056403,44324.0,44319.0,0.0207412]
[1644261712709,0.06565883,44323.0,44319.0,0.0207412]
[1644261712911,0.21640054,44326.0,44319.0,0.0207412]
[1644261713311,0.21640054,44326.0,44315.0,0.01995326]
[1644261713509,0.21081934,44322.0,44315.0,0.01995326]
[1644261713710,0.056398,44324.0,44315.0,0.01995326]
[1644261713914,0.29765484,44328.0,44315.0,0.01995326]
[1644261713915,0.2409,44332.0,44319.0,0.05]
[1644261714512,0.00059618,44330.0,44317.0,0.6007484]
[1644261714711,0.00059618,44330.0,44321.0,0.05]
[1644261715012,0.00059618,44330.0,44321.0,0.26955361]
[1644261715210,0.00059618,44330.0,44321.0,0.31955361]
[1644261715413,0.455552,44332.0,44321.0,0.41955361]
[1644261715611,0.00059627,44330.0,44321.0,0.41955361]
[1644261715813,0.00059627,44330.0,44324.0,0.05]
[1644261716210,0.00059627,44330.0,44321.0,0.36955361]
[1644261716467,0.214652,44332.0,44321.0,0.48230761]
[1644261716663,0.23,44330.0,44321.0,0.38230761]
[1644261716867,0.23,44330.0,44321.0,0.262754]
[1644261717064,0.23,44330.0,44321.0,0.1700286]
[1644261717665,0.2640306,44329.0,44321.0,0.1700286]
[1644261717865,0.23,44330.0,44321.0,0.0700286]
[1644261718265,0.23,44330.0,44321.0,0.1200286]
[1644261718464,0.23,44330.0,44321.0,0.0700286]
[1644261718666,0.23,44330.0,44321.0,0.44623759]
[1644261718866,0.23,44330.0,44321.0,0.49623759]
[1644261719264,0.23,44330.0,44321.0,0.206383]
[1644261719265,0.23066331,44330.0,44321.0,0.206383]
[1644261719866,0.23066331,44330.0,44321.0,0.256383]
[1644261720067,0.23066331,44330.0,44321.0,0.156383]
[1644261720304,0.23,44330.0,44321.0,0.156383]
[1644261720503,0.23066331,44330.0,44321.0,0.156383]
[1644261721109,0.23066331,44330.0,44321.0,0.17730538]
[1644261721306,0.23,44330.0,44321.0,0.17730538]
[1644261721508,0.23066331,44330.0,44321.0,0.17730538]
[1644261721707,0.23066331,44330.0,44321.0,0.34311191]
[1644261721908,0.23066331,44330.0,44321.0,0.44311191]
[1644261722211,0.23066331,44330.0,44321.0,0.22730538]
[1644261722609,0.23,44330.0,44321.0,0.22730538]
[1644261722810,0.23019947,44330.0,44321.0,0.22730538]
[1644261723010,0.23019947,44330.0,44321.0,0.12730538]
[1644261723210,0.23019947,44330.0,44325.0,0.05]
[1644261723412,0.23019947,44330.0,44329.0,0.05]
[1644261723810,0.23,44330.0,44329.0,0.05]
[1644261724056,0.20719949,44330.0,44329.0,0.05]
[1644261724254,0.19719949,44330.0,44329.0,0.05]
[1644261724859,0.19700001,44330.0,44329.0,0.05]
[1644261725254,0.19700001,44330.0,44327.0,0.37921802]
[1644261725455,0.19700001,44330.0,44326.0,0.34103515]
[1644261725456,0.19700001,44330.0,44326.0,0.201577]
[1644261725656,0.19700001,44330.0,44326.0,0.156377]
[1644261726555,0.41765879,44330.0,44326.0,0.156377]
[1644261726759,0.19766336,44330.0,44326.0,0.056377]
[1644261726955,0.19766336,44330.0,44326.0,0.112753]
[1644261727360,0.19700001,44330.0,44326.0,0.056377]
[1644261727811,0.19766336,44330.0,44326.0,0.056377]
[1644261728512,0.19700001,44330.0,44326.0,0.056377]
[1644261728912,0.19766336,44330.0,44326.0,0.056377]
[1644261729314,0.19766336,44330.0,44325.0,0.05]
[1644261729714,0.19700001,44330.0,44325.0,0.05]
[1644261729920,0.19700001,44330.0,44319.0,0.2]
[1644261729921,0.23490503,44325.0,44319.0,0.1]
[1644261730115,0.24069844,44323.0,44318.0,0.00076902]
[1644261730317,0.30376466,44323.0,44318.0,0.00076902]
[1644261730518,0.056398,44327.0,44318.0,0.00076902]
[1644261730718,0.19766335,44330.0,44318.0,0.00076902]
[1644261731019,0.19700001,44330.0,44316.0,0.33394007]
[1644261731217,0.00117996,44338.0,44329.0,0.05]
[1644261731478,0.02,44340.0,44338.0,0.2861698]
[1644261731667,0.00071858,44350.0,44339.0,0.7952]
[1644261731868,0.00111376,44357.0,44356.0,1.25]
[1644261732066,0.003,44371.0,44357.0,1.4]
[1644261732265,0.003,44371.0,44369.0,0.45]
[1644261732266,0.00668912,44371.0,44369.0,0.45]
[1644261732475,0.00668912,44371.0,44369.0,0.55213304]
[1644261732666,0.00668912,44371.0,44369.0,1.73514216]
[1644261732868,0.00668912,44371.0,44369.0,3.38940084]
[1644261733064,0.002,44376.0,44370.0,1.45]
[1644261733265,0.002,44376.0,44374.0,0.5648]
[1644261733466,0.0230752,44395.0,44375.0,0.65938013]
[1644261733665,0.0230752,44395.0,44387.0,0.056292]
[1644261733867,0.08342273,44392.0,44388.0,0.0452]
[1644261734066,0.0230752,44395.0,44388.0,0.0452]
[1644261734367,0.0230752,44395.0,44381.0,0.112619]
[1644261734667,0.0230752,44395.0,44385.0,0.1]
[1644261734668,0.21975526,44386.0,44385.0,0.1]
[1644261734865,0.21975526,44386.0,44381.0,0.05]
[1644261735068,0.21975526,44386.0,44381.0,0.06864887]
[1644261735309,0.003,44385.0,44382.0,0.056311]
[1644261735506,0.003,44385.0,44382.0,0.156311]
[1644261735708,0.003,44385.0,44381.0,0.06864887]
[1644261735908,0.29634852,44382.0,44381.0,0.06864887]
[1644261736107,0.003,44385.0,44381.0,0.01864887]
[1644261736108,0.07824882,44384.0,44381.0,0.01864887]
[1644261736308,0.003,44385.0,44381.0,0.01864887]
[1644261736914,0.003,44385.0,44381.0,0.00864887]
[1644261737215,0.003,44385.0,44366.0,0.00877663]
[1644261737216,0.08109407,44374.0,44367.0,0.1]
[1644261737412,0.23538496,44374.0,44367.0,0.1]
[1644261737808,0.23089704,44374.0,44360.0,0.3]
[1644261738010,0.23089704,44374.0,44357.0,0.476337]
[1644261738011,0.21330008,44373.0,44357.0,0.476337]
[1644261738212,0.02758884,44374.0,44359.0,0.05]
[1644261738411,0.02758884,44374.0,44357.0,0.056337]
[1644261738611,0.02758884,44374.0,44359.0,0.112669]
[1644261738612,0.0006302,44369.0,44359.0,0.112669]
[1644261739072,0.0006302,44369.0,44359.0,0.262669]
[1644261739270,0.0006302,44369.0,44359.0,0.312669]
[1644261739472,0.23,44369.0,44359.0,0.412669]
[1644261739670,0.23,44369.0,44363.0,0.05]
[1644261739870,0.0006302,44366.0,44363.0,0.05]
[1644261740274,0.11477642,44369.0,44364.0,0.4]
[1644261740676,0.00163079,44382.0,44368.0,0.68423244]
[1644261740873,0.74537245,44383.0,44369.0,0.36472194]
[1644261741072,0.003,44385.0,44380.0,0.01984166]
[1644261741474,0.23742907,44382.0,44380.0,0.01984166]
[1644261741673,0.003,44385.0,44380.0,0.00854778]
[1644261742272,0.22486385,44386.0,44380.0,0.00854778]
[1644261742703,0.19085051,44385.0,44380.0,0.00854778]
[1644261743103,0.22486385,44386.0,44380.0,0.00854778]
[1644261743303,0.00062863,44385.0,44380.0,0.00854778]
[1644261744102,0.08568457,44384.0,44380.0,0.00854778]
[1644261744703,0.23218826,44382.0,44380.0,0.00854778]
[1644261745104,0.00018892,44385.0,44380.0,0.00854778]
[1644261745307,0.24584768,44382.0,44371.0,0.01966711]
[1644261745508,0.01995987,44390.0,44371.0,0.01966711]
[1644261745707,0.00018892,44385.0,44371.0,0.01920103]
[1644261745906,0.38044201,44384.0,44371.0,0.01920103]
[1644261746113,0.44494625,44384.0,44371.0,0.01420103]
[1644261746311,0.07342337,44373.0,44371.0,0.01420103]
[1644261746562,0.1892535,44372.0,44371.0,0.01420103]
[1644261746763,0.0415,44374.0,44370.0,1.03e-06]
[1644261746764,1.15,44371.0,44370.0,1.03e-06]
[1644261747563,1.15,44371.0,44362.0,0.01667986]
[1644261747762,0.27354831,44363.0,44362.0,0.01667986]
[1644261747964,0.07419823,44363.0,44362.0,0.01667986]
[1644261748167,0.2526974,44364.0,44362.0,0.01667986]
[1644261748363,0.2526974,44364.0,44363.0,0.112675]
[1644261748663,0.2476974,44364.0,44363.0,0.112675]
[1644261748863,0.20060803,44364.0,44363.0,0.112675]
[1644261749064,0.20060803,44364.0,44363.0,0.05]
[1644261749264,0.22500804,44363.0,44362.0,0.01667986]
[1644261749464,0.49337484,44363.0,44362.0,7.986e-05]
[1644261749664,1.45,44362.0,44358.0,0.000781]
[1644261749867,0.0415,44361.0,44358.0,0.000781]
[1644261750306,0.0415,44361.0,44351.0,0.0242672]
[1644261750307,0.19086292,44354.0,44351.0,0.0242672]
[1644261750506,0.19086292,44354.0,44350.0,0.056349]
[1644261750507,0.17177663,44354.0,44350.0,0.056349]
[1644261750711,0.3,44360.0,44350.0,0.056349]
[1644261750906,0.3415,44361.0,44351.0,0.05]
[1644261751106,0.3415,44361.0,44351.0,0.0742672]
[1644261751307,0.3415,44361.0,44351.0,0.0242672]
[1644261751308,0.01898448,44355.0,44351.0,0.0242672]
[1644261751508,0.2220238,44352.0,44347.0,0.00689027]
[1644261751708,0.0415,44354.0,44347.0,0.00689027]
[1644261751709,0.08230896,44353.0,44351.0,0.02441349]
[1644261751907,0.08230896,44353.0,44347.0,0.03130376]
[1644261752308,0.2532657,44350.0,44347.0,0.03130376]
[1644261752708,0.2532657,44350.0,44347.0,0.00689027]
[1644261752908,0.0576594,44353.0,44347.0,0.08682515]
[1644261753412,0.0182893,44351.0,44347.0,0.13047415]
[1644261754066,0.19374746,44348.0,44347.0,0.13047415]
[1644261754666,0.19374746,44348.0,44347.0,0.03025431]
[1644261755268,0.0001,44350.0,44347.0,0.03025431]
[1644261755469,0.0001,44350.0,44347.0,0.03250431]
[1644261755669,0.0001,44350.0,44349.0,0.05]
[1644261756767,0.0001,44350.0,44348.0,0.05]
[1644261757068,0.0001,44350.0,44347.0,0.08328443]
[1644261757468,0.0001,44350.0,44347.0,0.08250431]
[1644261757711,0.0001,44350.0,44347.0,0.13250431]
[1644261758510,0.01336211,44354.0,44347.0,0.13250431]
[1644261759008,0.07612441,44348.0,44347.0,0.12561404]
[1644261759207,0.36931731,44348.0,44347.0,0.12561404]
[1644261759407,0.34456116,44348.0,44347.0,0.12561404]
[1644261759609,0.07612441,44348.0,44347.0,0.12561404]
[1644261760014,0.07625787,44348.0,44347.0,0.12561404]
[1644261760209,0.07625787,44348.0,44347.0,0.07561404]
[1644261760608,0.00013346,44348.0,44347.0,0.07561404]
[1644261760809,0.00013346,44348.0,44347.0,0.02561404]
[1644261761014,0.00013346,44348.0,44347.0,2.03472186]
[1644261761211,0.00013346,44348.0,44347.0,0.07561404]
[1644261761753,0.00013346,44348.0,44347.0,0.02561404]
[1644261761953,0.09013346,44348.0,44347.0,0.02561404]
[1644261762354,0.16709324,44349.0,44347.0,0.02561404]
[1644261762553,0.1672267,44349.0,44347.0,0.02561404]
[1644261764254,0.20375249,44350.0,44347.0,0.02561404]
[1644261765222,0.20375249,44350.0,44343.0,0.30126868]
[1644261765411,0.20375249,44350.0,44347.0,0.02561404]
[1644261765610,0.20375249,44350.0,44343.0,0.20126868]
[1644261765813,0.07325449,44349.0,44347.0,0.01792983]
[1644261766110,0.20375249,44350.0,44345.0,0.05]
[1644261766315,0.01935233,44357.0,44345.0,0.05]
[1644261766512,0.01935233,44357.0,44349.0,0.05]
[1644261766713,0.01935233,44357.0,44349.0,0.06792983]
[1644261767111,0.01935233,44357.0,44349.0,0.01792983]
[1644261767311,0.25232644,44353.0,44345.0,0.02051754]
[1644261767511,0.08040047,44350.0,44346.0,0.05]
[1644261767711,0.24695334,44352.0,44346.0,0.05]
[1644261767712,0.07824472,44349.0,44347.0,0.05]
[1644261767911,0.07824472,44349.0,44347.0,0.01792983]
[1644261768112,0.18488302,44352.0,44347.0,0.01792983]
[1644261768312,0.18488302,44352.0,44350.0,0.05]
[1644261768514,0.18488302,44352.0,44350.0,0.06792983]
[1644261768711,0.01814305,44364.0,44350.0,0.01792983]
[1644261768970,0.01814305,44364.0,44347.0,0.06792983]
[1644261769169,0.07630975,44358.0,44347.0,0.06792983]
[1644261769367,0.49300382,44360.0,44348.0,0.01922951]
[1644261769568,0.2357047,44366.0,44358.0,0.05]
[1644261769967,0.00252193,44361.0,44358.0,0.05]
[1644261770766,0.27942142,44362.0,44358.0,0.05]
[1644261770767,0.08192735,44362.0,44358.0,0.05]
[1644261770966,0.08255793,44362.0,44358.0,0.05]
[1644261771166,0.26494508,44359.0,44357.0,0.05]
[1644261771370,0.26494508,44359.0,44353.0,0.05]
[1644261771768,0.52341511,44359.0,44352.0,0.05]
[1644261771968,0.52341511,44359.0,44351.0,0.13829243]
[1644261772170,0.52341511,44359.0,44351.0,0.08829243]
[1644261772368,0.25089887,44359.0,44351.0,0.08829243]
[1644261773014,0.21704194,44356.0,44351.0,0.08829243]
[1644261773512,0.29354033,44356.0,44351.0,0.05]
[1644261773713,0.09,44359.0,44351.0,0.01628489]
[1644261773914,0.09,44359.0,44353.0,0.05]
[1644261774315,0.09,44359.0,44353.0,0.28514133]
[1644261774520,0.09,44359.0,44358.0,0.05]
[1644261774724,0.00018916,44360.0,44358.0,0.29723662]
[1644261774916,0.00018916,44360.0,44358.0,0.34723662]
[1644261775117,0.00018916,44360.0,44358.0,0.43223266]
[1644261775319,0.00018916,44360.0,44358.0,0.53223266]
[1644261775517,0.47160308,44370.0,44358.0,0.53223266]
[1644261775717,0.02133375,44369.0,44361.0,0.28534499]
[1644261776117,0.02133375,44369.0,44362.0,0.28534499]
[1644261776318,0.02133375,44369.0,44364.0,0.28534499]
[1644261776760,0.02133375,44369.0,44365.0,0.33534499]
[1644261776955,0.02196275,44369.0,44365.0,0.33534499]
[1644261777158,0.02196275,44369.0,44365.0,0.15]
[1644261777357,0.02196275,44369.0,44360.0,0.33223266]
[1644261777557,0.02196275,44369.0,44360.0,0.05]
[1644261777757,0.02196275,44369.0,44360.0,0.1]
[1644261777959,0.02133375,44369.0,44360.0,0.1]
[1644261778158,0.19313627,44364.0,44360.0,0.1]
[1644261778458,0.07057884,44361.0,44360.0,0.47332299]
[1644261778658,0.07057884,44361.0,44359.0,0.01966589]
[1644261779759,0.0001887,44362.0,44357.0,0.33223266]
[1644261780219,0.0001887,44362.0,44359.0,0.33223266]
[1644261780415,0.24471253,44365.0,44359.0,0.15]
[1644261780619,0.0001887,44362.0,44360.0,0.3733428]
[1644261780815,0.0001887,44362.0,44360.0,0.4733428]
[1644261781016,0.0001887,44362.0,44360.0,0.48857466]
[1644261781215,0.0001887,44362.0,44361.0,0.37333511]
[1644261781416,0.0001887,44362.0,44361.0,0.47333511]
[1644261781616,0.24471253,44365.0,44361.0,0.52333511]
[1644261781817,0.000629,44364.0,44362.0,0.3733279]
[1644261782126,0.01862916,44371.0,44364.0,0.056338]
[1644261782317,0.01862916,44371.0,44365.0,0.28560848]
[1644261782517,0.01862916,44371.0,44366.0,0.28560848]
[1644261782718,0.23551275,44371.0,44367.0,0.28560848]
[1644261783319,0.23551275,44371.0,44368.0,2.1760337]
[1644261783620,0.22453444,44371.0,44366.0,0.28560848]
[1644261784060,0.22453444,44371.0,44364.0,0.33223266]
[1644261784061,0.25721059,44369.0,44364.0,0.28560848]
[1644261784259,0.25721059,44369.0,44362.0,0.28560848]
[1644261785461,0.22365945,44364.0,44362.0,0.28560848]
[1644261785661,0.22365945,44364.0,44363.0,0.28562841]
[1644261785961,0.22365945,44364.0,44363.0,0.2856237]
[1644261786161,0.27679968,44374.0,44363.0,0.2856237]
[1644261786363,0.27679968,44374.0,44363.0,0.3356237]
[1644261786562,0.27679968,44374.0,44367.0,0.2856237]
[1644261786762,0.00062742,44366.0,44365.0,0.3356237]
[1644261787166,0.00062742,44366.0,44365.0,0.05]
[1644261787464,1.45,44365.0,44359.0,0.33223266]
[1644261787725,0.20134748,44363.0,44357.0,0.01947751]
[1644261788015,0.32105,44362.0,44357.0,0.01947751]
[1644261788213,0.0415,44364.0,44357.0,0.01947751]
[1644261788414,0.2583717,44359.0,44357.0,0.01947751]
[1644261788814,1.2,44358.0,44355.0,0.29268963]
[1644261789213,0.0194,44358.0,44355.0,0.29268963]
[1644261789415,0.0194,44358.0,44356.0,0.05886454]
[1644261789617,0.0194,44358.0,44351.0,0.01162885]
[1644261789818,0.0194,44358.0,44352.0,0.05885858]
[1644261790415,0.23906837,44358.0,44352.0,0.05885858]
[1644261790615,0.26431419,44357.0,44352.0,0.05885858]
[1644261791453,0.26431419,44357.0,44352.0,0.05963741]
[1644261791754,0.51986916,44357.0,44353.0,0.05885858]
[1644261792555,0.33710777,44357.0,44353.0,0.0596374]
[1644261792756,0.079608,44357.0,44354.0,0.05885858]
[1644261792955,0.079608,44357.0,44355.0,0.05885858]
[1644261793155,0.13595623,44357.0,44356.0,0.05885858]
[1644261793358,0.05634823,44357.0,44356.0,0.05885858]
[1644261793556,0.05634823,44357.0,44351.0,0.07048743]
[1644261793755,0.05634823,44357.0,44352.0,0.05885858]
[1644261793956,0.0194,44358.0,44353.0,0.05885858]
[1644261794160,0.0194,44358.0,44354.0,0.05885858]
[1644261794356,0.0194,44358.0,44353.0,2.4424664]
[1644261794557,0.0194,44358.0,44352.0,0.05885858]
[1644261794757,0.0194,44358.0,44353.0,0.05885858]
[1644261794960,0.0194,44358.0,44354.0,0.05885858]
[1644261795208,0.0194,44358.0,44355.0,0.05885858]
[1644261795405,0.28448,44358.0,44356.0,0.05885858]
[1644261795604,0.28448,44358.0,44357.0,0.05885858]
[1644261795805,0.26508,44358.0,44357.0,0.05885858]
[1644261796006,0.26508,44358.0,44352.0,0.4415711]
[1644261796205,0.26508,44358.0,44354.0,0.00077824]
[1644261796406,0.26508,44358.0,44355.0,0.05885858]
[1644261796606,0.2583717,44359.0,44356.0,0.05885858]
[1644261796806,0.2583717,44359.0,44357.0,0.05885858]
[1644261797007,0.2583717,44359.0,44358.0,0.05885858]
[1644261797406,0.2583717,44359.0,44354.0,0.00077824]
[1644261797611,0.2583717,44359.0,44355.0,0.05885858]
[1644261797807,0.2583717,44359.0,44354.0,0.00077824]
[1644261798407,0.2583717,44359.0,44351.0,0.45319995]
[1644261798609,0.26557738,44358.0,44351.0,0.39434137]
[1644261799455,0.39300379,44359.0,44352.0,0.05885858]
[1644261799654,0.39300379,44359.0,44353.0,0.05885858]
[1644261799955,0.39300379,44359.0,44354.0,0.05885858]
[1644261800160,0.05,44355.0,44338.0,0.20987347]
[1644261800355,0.05,44355.0,44339.0,0.43329966]
[1644261800655,0.10635618,44355.0,44340.0,0.07337685]
[1644261800854,0.10635618,44355.0,44341.0,0.056354]
[1644261801054,0.24292232,44352.0,44345.0,0.00077547]
[1644261801357,0.17580093,44352.0,44348.0,0.05]
[1644261801654,0.17580093,44352.0,44349.0,0.07337685]
[1644261801855,0.17580093,44352.0,44350.0,0.07337685]
[1644261802253,0.17580093,44352.0,44351.0,0.07337685]
[1644261802724,0.04693517,44355.0,44351.0,0.07337685]
[1644261802913,0.04693517,44355.0,44348.0,0.00077542]
[1644261802914,0.32105,44351.0,44350.0,0.33405343]
[1644261803111,0.36615,44351.0,44348.0,0.33482885]
[1644261803308,0.36615,44351.0,44340.0,0.06765872]
[1644261803309,1.45,44350.0,44340.0,0.06765872]